[Event "Championnat d'Europe de Blitz"]
[Date "2024.12.09"]
[White "Boyer, Mahel"]
[Black "Muter, Donny"]
[WhiteElo "2526"]
[BlackElo "2206"]
[Round "10.32"]
[Result "1-0"]
[TimeControl "180+2"]

1. Nf3 {[%emt 00:17:36] [%clk 00:03:03]} d6 {[%emt 00:00:02] [%clk 00:03:03]} 2.
d4 {[%emt 00:00:02] [%clk 00:03:03]} c6 {[%emt 00:00:02] [%clk 00:03:04]} 3. e4
{[%emt 00:00:02] [%clk 00:03:03]} Nf6 {[%emt 00:00:01] [%clk 00:03:04]} 4. Bd3
{[%emt 00:00:04] [%clk 00:03:00]} Qc7 {[%emt 00:00:10] [%clk 00:02:57]} 5. e5
{[%emt 00:00:02] [%clk 00:03:00]} dxe5 {[%emt 00:00:08] [%clk 00:02:51]} 6. dxe5
{[%emt 00:00:02] [%clk 00:03:01]} Nd5 {[%emt 00:00:01] [%clk 00:02:51]} 7. h3
{[%emt 00:00:03] [%clk 00:03:00]} g6 {[%emt 00:01:05] [%clk 00:01:48]} 8. O-O
{[%emt 00:00:03] [%clk 00:02:58]} Bg7 {[%clk 00:01:49]} 9. Re1 {[%emt 00:00:02]
[%clk 00:02:58]} O-O {[%emt 00:00:11] [%clk 00:01:39]} 10. a3 {[%emt 00:00:02]
[%clk 00:02:59]} b5 {[%emt 00:00:05] [%clk 00:01:36]} 11. c4 {[%emt 00:00:18]
[%clk 00:02:43]} bxc4 {[%emt 00:00:02] [%clk 00:01:36]} 12. Bxc4 {[%emt
00:00:01] [%clk 00:02:44]} Nd7 {[%emt 00:00:33] [%clk 00:01:05]} 13. e6 {[%emt
00:00:02] [%clk 00:02:44]} N7b6 {[%emt 00:00:02] [%clk 00:01:05]} 14. exf7+
{[%emt 00:00:02] [%clk 00:02:44]} Rxf7 {[%clk 00:01:07]} 15. Ba2 {[%emt
00:00:02] [%clk 00:02:44]} e5 {[%emt 00:00:01] [%clk 00:01:08]} 16. Nc3 {[%emt
00:00:06] [%clk 00:02:41]} Kh8 {[%emt 00:00:12] [%clk 00:00:58]} 17. Ne4 {[%emt
00:00:12] [%clk 00:02:30]} Bf5 {[%emt 00:00:09] [%clk 00:00:51]} 18. Qe2 {[%emt
00:00:05] [%clk 00:02:27]} Rff8 {[%emt 00:00:08] [%clk 00:00:45]} 19. Nc5 {[%emt
00:00:30] [%clk 00:02:00]} Rae8 {[%emt 00:00:08] [%clk 00:00:38]} 20. Ng5 {[%emt
00:00:01] [%clk 00:02:00]} e4 {[%emt 00:00:15] [%clk 00:00:25]} 21. Ngxe4 {[%emt
00:00:05] [%clk 00:01:57]} Bd4 {[%emt 00:00:14] [%clk 00:00:13]} 22. Qd2 {[%emt
00:00:08] [%clk 00:01:52]} Qg7 {[%emt 00:00:08] [%clk 00:00:07]} 23. Rd1 {[%emt
00:00:08] [%clk 00:01:46]} Be5 {[%emt 00:00:04] [%clk 00:00:06]} 24. Ng5 {[%emt
00:00:23] [%clk 00:01:24]} h6 {[%emt 00:00:03] [%clk 00:00:05]} 25. Nf3 {[%clk
00:01:25]} Bb8 {[%emt 00:00:03] [%clk 00:00:04]} 26. Qxh6+ {[%emt 00:00:01]
[%clk 00:01:26]} Kg8 {[%emt 00:00:01] [%clk 00:00:05]} 27. Qxg7+ {[%emt
00:00:04] [%clk 00:01:24]} Kxg7 {[%clk 00:00:07]} 28. b4 {[%emt 00:00:01] [%clk
00:01:25]} Nf4 {[%emt 00:00:03] [%clk 00:00:06]} 29. Bb2+ {[%emt 00:00:03] [%clk
00:01:24]} Kh6 {[%clk 00:00:08]} 30. Rd2 {[%emt 00:00:10] [%clk 00:01:16]} g5
{[%emt 00:00:05] [%clk 00:00:05]} 31. Nh2 {[%emt 00:00:01] [%clk 00:01:17]} Re2
{[%emt 00:00:02] [%clk 00:00:05]} 32. Rxe2 {[%emt 00:00:11] [%clk 00:01:08]}
Nxe2+ {[%emt 00:00:01] [%clk 00:00:06]} 33. Kh1 {[%clk 00:01:09]} Rd8 {[%emt
00:00:01] [%clk 00:00:06]} 34. Nf3 {[%emt 00:00:04] [%clk 00:01:07]} g4 {[%emt
00:00:02] [%clk 00:00:07]} 35. Ne5 {[%emt 00:00:04] [%clk 00:01:04]} Rd2 {[%emt
00:00:04] [%clk 00:00:05]} 36. Nxc6 {[%emt 00:00:14] [%clk 00:00:53]} Rxb2
{[%emt 00:00:04] [%clk 00:00:03]} 37. Nxb8 {[%emt 00:00:01] [%clk 00:00:53]}
gxh3 {[%clk 00:00:05]} 38. Be6 {[%emt 00:00:08] [%clk 00:00:47]} hxg2+ {[%emt
00:00:04] [%clk 00:00:00]} 1-0

[Site "Europe Echecs"]

[Event "Championnat d'Europe de Blitz"]
[Date "2024.12.09"]
[White "Ghimpu, Samuel-Timotei"]
[Black "Stankovic, Milos"]
[WhiteElo "2475"]
[BlackElo "2462"]
[Round "10.33"]
[Result "1-0"]
[TimeControl "180+2"]

1. d4 {[%emt 00:00:02] [%clk 00:03:02]} d5 {[%emt 00:00:01] [%clk 00:03:03]} 2.
Nf3 {[%emt 00:00:03] [%clk 00:03:03]} Nf6 {[%clk 00:03:03]} 3. Bf4 {[%clk
00:03:04]} e6 {[%emt 00:00:01] [%clk 00:03:03]} 4. Nbd2 {[%emt 00:00:02] [%clk
00:03:05]} Bd6 {[%emt 00:00:02] [%clk 00:03:03]} 5. Bg5 {[%emt 00:00:01] [%clk
00:03:06]} h6 {[%emt 00:00:12] [%clk 00:02:53]} 6. Bxf6 {[%emt 00:00:02] [%clk
00:03:06]} Qxf6 {[%emt 00:00:05] [%clk 00:02:49]} 7. e4 {[%emt 00:00:01] [%clk
00:03:07]} dxe4 {[%emt 00:00:14] [%clk 00:02:37]} 8. Nxe4 {[%emt 00:00:01] [%clk
00:03:08]} Qd8 {[%emt 00:00:02] [%clk 00:02:37]} 9. Bd3 {[%emt 00:00:01] [%clk
00:03:09]} Nd7 {[%emt 00:00:10] [%clk 00:02:29]} 10. Qe2 {[%emt 00:00:07] [%clk
00:03:05]} Nf6 {[%emt 00:00:04] [%clk 00:02:27]} 11. O-O-O {[%emt 00:00:14]
[%clk 00:02:53]} Nxe4 {[%emt 00:00:34] [%clk 00:01:55]} 12. Qxe4 {[%emt
00:00:02] [%clk 00:02:53]} c6 {[%emt 00:00:08] [%clk 00:01:49]} 13. Kb1 {[%emt
00:00:04] [%clk 00:02:51]} Bd7 {[%emt 00:00:03] [%clk 00:01:48]} 14. Ne5 {[%emt
00:00:03] [%clk 00:02:51]} Qe7 {[%emt 00:00:08] [%clk 00:01:42]} 15. f4 {[%emt
00:00:16] [%clk 00:02:37]} O-O-O {[%emt 00:00:07] [%clk 00:01:37]} 16. Rhe1
{[%emt 00:00:03] [%clk 00:02:36]} Be8 {[%emt 00:00:07] [%clk 00:01:32]} 17. f5
{[%emt 00:00:27] [%clk 00:02:12]} Bc7 {[%emt 00:00:14] [%clk 00:01:19]} 18. fxe6
{[%emt 00:00:21] [%clk 00:01:53]} Qxe6 {[%emt 00:00:02] [%clk 00:01:20]} 19. Bc4
{[%clk 00:01:54]} Qd6 {[%emt 00:00:32] [%clk 00:00:50]} 20. Bxf7 {[%emt
00:00:18] [%clk 00:01:38]} Kb8 {[%emt 00:00:07] [%clk 00:00:46]} 21. Qg4 {[%emt
00:01:03] [%clk 00:00:37]} g5 {[%emt 00:00:09] [%clk 00:00:38]} 22. c3 {[%emt
00:00:13] [%clk 00:00:26]} Rf8 {[%emt 00:00:02] [%clk 00:00:38]} 23. Bxe8 {[%emt
00:00:03] [%clk 00:00:24]} Rfxe8 {[%emt 00:00:02] [%clk 00:00:38]} 24. Qf5
{[%emt 00:00:10] [%clk 00:00:16]} Qd5 {[%emt 00:00:04] [%clk 00:00:37]} 25. Nd7+
{[%emt 00:00:07] [%clk 00:00:10]} Ka8 {[%emt 00:00:09] [%clk 00:00:30]} 26. Qxd5
{[%emt 00:00:03] [%clk 00:00:08]} cxd5 {[%emt 00:00:02] [%clk 00:00:30]} 27.
Rxe8 {[%emt 00:00:03] [%clk 00:00:07]} Rxe8 {[%clk 00:00:32]} 28. Nf6 {[%emt
00:00:02] [%clk 00:00:08]} Re2 {[%emt 00:00:05] [%clk 00:00:29]} 29. g4 {[%emt
00:00:04] [%clk 00:00:06]} Bxh2 {[%emt 00:00:05] [%clk 00:00:26]} 30. Nxd5
{[%emt 00:00:01] [%clk 00:00:07]} b6 {[%emt 00:00:02] [%clk 00:00:27]} 31. Rf1
{[%clk 00:00:07]} Re4 {[%emt 00:00:05] [%clk 00:00:25]} 32. Rf8+ {[%emt
00:00:04] [%clk 00:00:05]} Kb7 {[%clk 00:00:26]} 33. Nf6 {[%clk 00:00:07]} Rf4
{[%emt 00:00:05]} 34. Kc2 {[%clk 00:00:06]} Rf2+ {[%emt 00:00:03] [%clk
00:00:25]} 35. Kb3 {[%clk 00:00:07]} Bd6 {[%emt 00:00:01] [%clk 00:00:25]} 36.
Rf7+ {[%emt 00:00:02] [%clk 00:00:07]} Ka6 {[%clk 00:00:27]} 37. a4 {[%emt
00:00:03] [%clk 00:00:06]} Rf3 {[%emt 00:00:01] [%clk 00:00:27]} 38. Kc4 {[%emt
00:00:02] [%clk 00:00:07]} Rf2 {[%emt 00:00:05] [%clk 00:00:23]} 39. b4 {[%clk
00:00:08]} Bb8 {[%emt 00:00:03] [%clk 00:00:22]} 40. Rf8 {[%emt 00:00:05] [%clk
00:00:06]} Bd6 {[%emt 00:00:01] [%clk 00:00:22]} 41. Rf7 {[%clk 00:00:07]} Bb8
{[%clk 00:00:24]} 42. Kb3 {[%emt 00:00:04] [%clk 00:00:05]} Rf3 {[%emt 00:00:02]
[%clk 00:00:23]} 43. b5+ {[%emt 00:00:03] [%clk 00:00:05]} Ka5 {[%clk 00:00:25]}
44. Rb7 {[%emt 00:00:02] [%clk 00:00:04]} Rxf6 {[%emt 00:00:02] [%clk 00:00:25]}
45. Rxb8 {[%clk 00:00:05]} Rf7 {[%emt 00:00:03] [%clk 00:00:24]} 46. Rh8 {[%emt
00:00:01] [%clk 00:00:06]} Rf1 {[%emt 00:00:05] [%clk 00:00:21]} 47. Rh7 {[%emt
00:00:04] [%clk 00:00:04]} a6 {[%emt 00:00:06] [%clk 00:00:17]} 48. Ra7 {[%clk
00:00:05]} 1-0

[Site "Europe Echecs"]

[Event "Championnat d'Europe de Blitz"]
[Date "2024.12.09"]
[White "Krallis, Christos"]
[Black "Djurovic, Peko"]
[WhiteElo "2383"]
[BlackElo "2253"]
[Round "10.34"]
[Result "1-0"]
[TimeControl "180+2"]

1. e4 {[%emt 00:00:02] [%clk 00:03:02]} c5 {[%emt 00:00:05] [%clk 00:03:02]} 2.
Nf3 {[%clk 00:03:02]} Nc6 {[%emt 00:00:01] [%clk 00:03:02]} 3. Bb5 {[%emt
00:00:06] [%clk 00:02:58]} e6 {[%emt 00:00:04] [%clk 00:03:01]} 4. O-O {[%emt
00:00:05] [%clk 00:02:54]} Nge7 {[%emt 00:00:02] [%clk 00:03:01]} 5. Re1 {[%emt
00:00:09] [%clk 00:02:47]} a6 {[%emt 00:00:03] [%clk 00:03:01]} 6. Bf1 {[%emt
00:00:02] [%clk 00:02:47]} Ng6 {[%emt 00:00:05] [%clk 00:02:58]} 7. c3 {[%emt
00:00:13] [%clk 00:02:35]} Be7 {[%emt 00:00:19] [%clk 00:02:40]} 8. d4 {[%emt
00:00:02] [%clk 00:02:35]} cxd4 {[%emt 00:00:55] [%clk 00:01:47]} 9. cxd4 {[%clk
00:02:36]} d5 {[%emt 00:00:03] [%clk 00:01:47]} 10. e5 {[%emt 00:00:20] [%clk
00:02:18]} O-O {[%emt 00:00:02] [%clk 00:01:47]} 11. Nc3 {[%emt 00:00:03] [%clk
00:02:17]} Bd7 {[%emt 00:00:20] [%clk 00:01:29]} 12. g3 {[%emt 00:00:04] [%clk
00:02:15]} f6 {[%emt 00:00:03] [%clk 00:01:29]} 13. exf6 {[%emt 00:00:05] [%clk
00:02:12]} Bxf6 {[%emt 00:00:03] [%clk 00:01:28]} 14. h4 {[%emt 00:00:02] [%clk
00:02:11]} Qc7 {[%emt 00:00:23] [%clk 00:01:08]} 15. h5 {[%emt 00:00:04] [%clk
00:02:09]} Nge7 {[%emt 00:00:02] [%clk 00:01:08]} 16. Bh3 {[%emt 00:00:15] [%clk
00:01:56]} Rad8 {[%emt 00:00:44] [%clk 00:00:27]} 17. Bxe6+ {[%emt 00:00:11]
[%clk 00:01:46]} Bxe6 {[%emt 00:00:01] [%clk 00:00:28]} 18. Rxe6 {[%emt
00:00:02] [%clk 00:01:46]} Nf5 {[%emt 00:00:01] [%clk 00:00:29]} 19. Bf4 {[%emt
00:00:46] [%clk 00:01:02]} Qa5 {[%emt 00:00:01] [%clk 00:00:30]} 20. h6 {[%emt
00:00:18] [%clk 00:00:47]} Nfxd4 {[%emt 00:00:08] [%clk 00:00:23]} 21. Nxd4
{[%clk 00:00:48]} Bxd4 {[%emt 00:00:05] [%clk 00:00:21]} 22. hxg7 {[%emt
00:00:03] [%clk 00:00:46]} Bxg7 {[%emt 00:00:02] [%clk 00:00:21]} 23. Qg4 {[%emt
00:00:08] [%clk 00:00:39]} Rf7 {[%emt 00:00:04] [%clk 00:00:20]} 24. Rd1 {[%emt
00:00:09] [%clk 00:00:32]} d4 {[%emt 00:00:13] [%clk 00:00:10]} 25. Ne4 {[%emt
00:00:02] [%clk 00:00:32]} Qf5 {[%emt 00:00:01] [%clk 00:00:11]} 26. Qxf5 {[%emt
00:00:11] [%clk 00:00:23]} Rxf5 {[%clk 00:00:12]} 27. Bc7 {[%emt 00:00:05] [%clk
00:00:21]} Rdf8 {[%emt 00:00:07] [%clk 00:00:07]} 28. Bd6 {[%emt 00:00:03] [%clk
00:00:20]} Rd8 {[%emt 00:00:02] [%clk 00:00:07]} 29. f4 {[%emt 00:00:07] [%clk
00:00:15]} Rd5 {[%clk 00:00:08]} 30. Bc7 {[%emt 00:00:01] [%clk 00:00:16]} Rf8
{[%emt 00:00:01] [%clk 00:00:09]} 31. Bd6 {[%emt 00:00:04] [%clk 00:00:14]} Rd8
{[%clk 00:00:10]} 32. Bc7 {[%emt 00:00:01] [%clk 00:00:14]} Rc8 {[%emt 00:00:01]
[%clk 00:00:11]} 33. Bb6 {[%emt 00:00:03] [%clk 00:00:13]} d3 {[%clk 00:00:12]}
34. Kg2 {[%clk 00:00:14]} Bxb2 {[%emt 00:00:03] [%clk 00:00:12]} 35. Nd6 {[%emt
00:00:06] [%clk 00:00:11]} Rf8 {[%emt 00:00:04] [%clk 00:00:10]} 36. Nxb7 {[%emt
00:00:02] [%clk 00:00:10]} Nb4 {[%emt 00:00:05] [%clk 00:00:07]} 37. Bc5 {[%emt
00:00:02] [%clk 00:00:10]} Rb8 {[%emt 00:00:03] [%clk 00:00:06]} 38. Bxb4 {[%emt
00:00:04] [%clk 00:00:07]} Rxb7 {[%clk 00:00:08]} 39. a3 {[%clk 00:00:09]} a5
{[%emt 00:00:02] [%clk 00:00:07]} 40. Bxa5 {[%clk 00:00:09]} Rxa5 {[%emt
00:00:02] [%clk 00:00:08]} 41. Rxd3 {[%clk 00:00:10]} Rxa3 {[%emt 00:00:01]
[%clk 00:00:09]} 42. Rd8+ {[%emt 00:00:04] [%clk 00:00:08]} Kg7 {[%clk
00:00:10]} 43. Kh3 {[%emt 00:00:03] [%clk 00:00:06]} Bf6 {[%emt 00:00:03] [%clk
00:00:10]} 44. Rdd6 {[%emt 00:00:01] [%clk 00:00:07]} Rf7 {[%emt 00:00:03] [%clk
00:00:09]} 45. Rc6 {[%emt 00:00:02] [%clk 00:00:07]} Rd3 {[%clk 00:00:10]} 46.
Kg4 {[%clk 00:00:08]} h6 {[%emt 00:00:02] [%clk 00:00:10]} 47. Re8 {[%emt
00:00:01] [%clk 00:00:09]} Bc3 {[%emt 00:00:05] [%clk 00:00:07]} 48. Rcc8 {[%emt
00:00:03] [%clk 00:00:08]} Bd2 {[%emt 00:00:05] [%clk 00:00:05]} 49. Kh5 {[%emt
00:00:02] [%clk 00:00:07]} Rxg3 {[%emt 00:00:02] [%clk 00:00:04]} 50. Rg8+
{[%clk 00:00:09]} Kf6 {[%clk 00:00:06]} 51. Rxg3 {[%emt 00:00:03] [%clk
00:00:07]} Bxf4 {[%clk 00:00:07]} 52. Rf3 {[%clk 00:00:08]} Ke5 {[%emt 00:00:02]
[%clk 00:00:07]} 53. Rc2 {[%emt 00:00:05] [%clk 00:00:05]} Ke4 {[%emt 00:00:01]
[%clk 00:00:08]} 54. Rcf2 {[%emt 00:00:01] [%clk 00:00:05]} Rf5+ {[%emt
00:00:02] [%clk 00:00:09]} 55. Kg6 {[%clk 00:00:07]} Rg5+ {[%emt 00:00:02] [%clk
00:00:08]} 56. Kf6 {[%emt 00:00:01] [%clk 00:00:07]} Rg4 {[%emt 00:00:01] [%clk
00:00:09]} 57. Rb3 {[%emt 00:00:02] [%clk 00:00:07]} Be3 {[%emt 00:00:06] [%clk
00:00:05]} 58. Rb4+ {[%emt 00:00:01] [%clk 00:00:08]} Bd4+ {[%clk 00:00:07]} 59.
Ke6 {[%emt 00:00:05] [%clk 00:00:04]} Rg6+ {[%clk 00:00:08]} 60. Kf7 {[%emt
00:00:02] [%clk 00:00:04]} Rd6 {[%clk 00:00:09]} 61. Ra2 {[%emt 00:00:02] [%clk
00:00:05]} h5 {[%clk 00:00:10]} 62. Rh2 {[%emt 00:00:01] [%clk 00:00:05]} Rd5
{[%emt 00:00:01] [%clk 00:00:12]} 63. Rh4+ {[%emt 00:00:01] [%clk 00:00:05]} Kd3
{[%clk 00:00:13]} 64. Rb3+ {[%clk 00:00:07]} Kc4 {[%emt 00:00:02] [%clk
00:00:14]} 65. Rbh3 {[%emt 00:00:02] [%clk 00:00:06]} Kc5 {[%emt 00:00:05] [%clk
00:00:11]} 66. Ke6 {[%emt 00:00:01] [%clk 00:00:07]} Re5+ {[%clk 00:00:12]} 67.
Kd7 {[%emt 00:00:01] [%clk 00:00:06]} Kc4 {[%emt 00:00:02] [%clk 00:00:14]} 68.
Rh1 {[%emt 00:00:02] [%clk 00:00:06]} Rd5+ {[%emt 00:00:03] [%clk 00:00:13]} 69.
Ke6 {[%emt 00:00:03] [%clk 00:00:05]} Re5+ {[%emt 00:00:01] [%clk 00:00:14]} 70.
Kd6 {[%clk 00:00:06]} Re3 {[%emt 00:00:06] [%clk 00:00:11]} 71. Rxh5 {[%emt
00:00:03] [%clk 00:00:05]} Bc3 {[%emt 00:00:01] [%clk 00:00:12]} 72. R5h4+
{[%clk 00:00:06]} Kd3 {[%emt 00:00:01] [%clk 00:00:13]} 73. Rd1+ {[%clk
00:00:07]} Bd2 {[%emt 00:00:02] [%clk 00:00:14]} 74. Rh2 {[%clk 00:00:08]} Re2
{[%clk 00:00:15]} 75. Rh3+ {[%emt 00:00:02]} Re3 76. Rh5 {[%clk 00:00:11]} Rg3
{[%emt 00:00:02] [%clk 00:00:17]} 77. Rd5+ {[%emt 00:00:01] [%clk 00:00:12]} 1-0

[Site "Europe Echecs"]

[Event "Championnat d'Europe de Blitz"]
[Date "2024.12.09"]
[White "Todorovic, Goran N"]
[Black "Larkin, Vladyslav"]
[WhiteElo "2256"]
[BlackElo "2449"]
[Round "10.35"]
[Result "0-1"]
[TimeControl "180+2"]

1. Nf3 {[%clk 00:03:03]} d6 {[%emt 00:00:02] [%clk 00:03:03]} 2. d4 {[%emt
00:00:02] [%clk 00:03:02]} Bg4 {[%emt 00:00:01] [%clk 00:03:04]} 3. c4 {[%emt
00:00:02] [%clk 00:03:03]} Nf6 {[%emt 00:00:03] [%clk 00:03:03]} 4. Nc3 {[%emt
00:00:01] [%clk 00:03:03]} g6 {[%emt 00:00:03] [%clk 00:03:02]} 5. e3 {[%emt
00:00:09] [%clk 00:02:56]} c6 {[%emt 00:00:02] [%clk 00:03:02]} 6. h3 {[%emt
00:00:02] [%clk 00:02:56]} Bxf3 {[%emt 00:00:03] [%clk 00:03:01]} 7. Qxf3 {[%emt
00:00:01] [%clk 00:02:56]} Bg7 {[%emt 00:00:02] [%clk 00:03:02]} 8. Bd3 {[%emt
00:00:02] [%clk 00:02:56]} O-O {[%emt 00:00:06] [%clk 00:02:58]} 9. Bd2 {[%emt
00:00:16] [%clk 00:02:42]} e5 {[%emt 00:00:03] [%clk 00:02:57]} 10. d5 {[%emt
00:00:02] [%clk 00:02:41]} Re8 {[%emt 00:00:05] [%clk 00:02:54]} 11. e4 {[%emt
00:00:01] [%clk 00:02:42]} Nbd7 {[%emt 00:00:04] [%clk 00:02:52]} 12. O-O {[%emt
00:00:30] [%clk 00:02:13]} a5 {[%emt 00:00:02] [%clk 00:02:53]} 13. Rab1 {[%emt
00:00:09] [%clk 00:02:06]} Nh5 {[%emt 00:00:22] [%clk 00:02:33]} 14. g3 {[%emt
00:00:13] [%clk 00:01:55]} Nc5 {[%emt 00:00:11] [%clk 00:02:25]} 15. Be2 {[%emt
00:00:12] [%clk 00:01:44]} Rf8 {[%emt 00:00:07] [%clk 00:02:21]} 16. Be3 {[%emt
00:00:29] [%clk 00:01:17]} Nd7 {[%emt 00:00:36] [%clk 00:01:47]} 17. Qg2 {[%emt
00:00:06] [%clk 00:01:13]} Nhf6 {[%emt 00:00:02] [%clk 00:01:47]} 18. Rbd1
{[%emt 00:00:10] [%clk 00:01:05]} Qe7 {[%emt 00:00:02] [%clk 00:01:47]} 19. g4
{[%emt 00:00:10] [%clk 00:00:56]} Nc5 {[%emt 00:00:10] [%clk 00:01:40]} 20. Rd2
{[%emt 00:00:21] [%clk 00:00:37]} cxd5 {[%emt 00:00:25] [%clk 00:01:17]} 21.
cxd5 {[%emt 00:00:14] [%clk 00:00:24]} Nfd7 {[%emt 00:00:02] [%clk 00:01:18]}
22. f3 {[%emt 00:00:07] [%clk 00:00:19]} Kh8 {[%emt 00:00:03] [%clk 00:01:17]}
23. Rc2 {[%emt 00:00:01] [%clk 00:00:19]} f5 {[%emt 00:00:03] [%clk 00:01:16]}
24. Nb5 {[%emt 00:00:08] [%clk 00:00:13]} b6 {[%emt 00:00:11] [%clk 00:01:08]}
25. Na3 {[%emt 00:00:06] [%clk 00:00:09]} Nf6 {[%emt 00:00:09] [%clk 00:01:01]}
26. Bxc5 {[%emt 00:00:09] [%clk 00:00:00]} 0-1

[Site "Europe Echecs"]

[Event "Championnat d'Europe de Blitz"]
[Date "2024.12.09"]
[White "Navara, David"]
[Black "Gaponenko, Inna"]
[WhiteElo "2665"]
[BlackElo "2343"]
[Round "10.36"]
[Result "1-0"]
[TimeControl "180+2"]

1. d4 {[%emt 00:16:25] [%clk 00:03:03]} d5 {[%clk 00:03:04]} 2. c4 {[%clk
00:03:04]} dxc4 {[%emt 00:00:01] [%clk 00:03:05]} 3. e4 {[%emt 00:00:01] [%clk
00:03:05]} e5 {[%clk 00:03:06]} 4. Nf3 {[%emt 00:00:02] [%clk 00:03:06]} Bb4+
{[%emt 00:00:08] [%clk 00:03:00]} 5. Bd2 {[%emt 00:00:14] [%clk 00:02:54]} Bxd2+
{[%emt 00:00:04] [%clk 00:02:58]} 6. Qxd2 {[%emt 00:00:03] [%clk 00:02:53]} exd4
{[%emt 00:00:09] [%clk 00:02:51]} 7. Nxd4 {[%emt 00:00:02] [%clk 00:02:53]} Ne7
{[%emt 00:00:10] [%clk 00:02:43]} 8. Bxc4 {[%emt 00:00:10] [%clk 00:02:45]} Nbc6
{[%clk 00:02:44]} 9. Nxc6 {[%emt 00:00:04] [%clk 00:02:43]} Qxd2+ {[%emt
00:00:02] [%clk 00:02:45]} 10. Kxd2 {[%emt 00:00:07] [%clk 00:02:38]} Nxc6
{[%emt 00:00:01] [%clk 00:02:46]} 11. Nc3 {[%emt 00:00:09] [%clk 00:02:31]} Be6
{[%emt 00:00:21] [%clk 00:02:27]} 12. Bxe6 {[%emt 00:00:03] [%clk 00:02:30]}
fxe6 {[%emt 00:00:01] [%clk 00:02:28]} 13. Ke3 {[%emt 00:00:07] [%clk 00:02:25]}
Ke7 {[%emt 00:00:09] [%clk 00:02:22]} 14. f4 {[%emt 00:00:17] [%clk 00:02:09]}
Rad8 {[%emt 00:00:09] [%clk 00:02:15]} 15. Rad1 {[%emt 00:00:05] [%clk
00:02:06]} Rxd1 {[%emt 00:00:13] [%clk 00:02:05]} 16. Rxd1 {[%emt 00:00:01]
[%clk 00:02:06]} Rd8 {[%clk 00:02:06]} 17. Rxd8 {[%emt 00:00:12] [%clk
00:01:57]} Kxd8 {[%emt 00:00:01] [%clk 00:02:06]} 18. g4 {[%emt 00:00:18] [%clk
00:01:40]} Kd7 {[%emt 00:00:30] [%clk 00:01:39]} 19. h4 {[%emt 00:00:16] [%clk
00:01:26]} e5 {[%emt 00:00:17] [%clk 00:01:24]} 20. f5 {[%emt 00:00:03] [%clk
00:01:25]} Nd4 {[%emt 00:00:06] [%clk 00:01:20]} 21. g5 {[%emt 00:00:12] [%clk
00:01:14]} c6 {[%emt 00:00:14] [%clk 00:01:09]} 22. Nd1 {[%emt 00:00:11] [%clk
00:01:05]} Nc2+ {[%emt 00:00:04] [%clk 00:01:07]} 23. Kd2 {[%emt 00:00:24] [%clk
00:00:43]} Nd4 {[%emt 00:00:02] [%clk 00:01:08]} 24. Ke3 {[%emt 00:00:01] [%clk
00:00:43]} Nc2+ {[%clk 00:01:09]} 25. Ke2 {[%emt 00:00:12] [%clk 00:00:34]} Nd4+
{[%emt 00:00:06] [%clk 00:01:05]} 26. Kf2 {[%emt 00:00:01] [%clk 00:00:35]} Nc2
{[%emt 00:00:11] [%clk 00:00:56]} 27. Kf3 {[%emt 00:00:10] [%clk 00:00:27]} Nd4+
{[%emt 00:00:05] [%clk 00:00:53]} 28. Kg4 {[%emt 00:00:01] [%clk 00:00:28]} Nc2
{[%emt 00:00:06] [%clk 00:00:49]} 29. h5 {[%emt 00:00:15] [%clk 00:00:15]} Ke7
{[%emt 00:00:01] [%clk 00:00:49]} 30. Nf2 {[%clk 00:00:16]} Ne3+ {[%emt
00:00:05] [%clk 00:00:47]} 31. Kf3 {[%emt 00:00:02] [%clk 00:00:16]} Nc2 {[%emt
00:00:01] [%clk 00:00:48]} 32. Nd3 {[%emt 00:00:02] [%clk 00:00:17]} Nd4+ {[%emt
00:00:02] [%clk 00:00:48]} 33. Kg4 {[%emt 00:00:02] [%clk 00:00:17]} Kd6 {[%emt
00:00:04] [%clk 00:00:46]} 34. h6 {[%emt 00:00:06] [%clk 00:00:13]} gxh6 {[%emt
00:00:02] [%clk 00:00:46]} 35. g6 {[%emt 00:00:01] [%clk 00:00:14]} hxg6 {[%emt
00:00:04] [%clk 00:00:44]} 36. fxg6 {[%emt 00:00:01] [%clk 00:00:14]} Ke6 {[%emt
00:00:19] [%clk 00:00:27]} 37. Kh5 {[%clk 00:00:15]} Kf6 {[%emt 00:00:04] [%clk
00:00:26]} 38. Kxh6 {[%emt 00:00:01] [%clk 00:00:16]} Ne6 {[%emt 00:00:02] [%clk
00:00:26]} 39. Nc5 {[%emt 00:00:02] [%clk 00:00:16]} Ng5 {[%emt 00:00:24] [%clk
00:00:04]} 40. Nd7+ {[%emt 00:00:04] [%clk 00:00:15]} 1-0

[Site "Europe Echecs"]